bitfinex/quotes_BTCUSD_20241110
["timestamp","ask_amount","ask_price","bid_price","bid_amount"]
[1731255307091,0.00861627,79658.0,79656.0,0.25148021]
[1731255307264,0.125535,79659.0,79656.0,0.12594221]
[1731255307468,0.00860646,79657.0,79656.0,0.12594221]
[1731255307697,0.125533,79660.0,79656.0,0.12594221]
[1731255307910,0.130531,79662.0,79656.0,0.25148021]
[1731255308073,0.00864571,79661.0,79656.0,0.12594221]
[1731255308426,0.00864571,79661.0,79657.0,0.125537]
[1731255308628,0.00864571,79661.0,79656.0,0.12594221]
[1731255308842,0.00864571,79661.0,79660.0,0.125533]
[1731255309049,0.251026,79673.0,79661.0,0.125531]
[1731255309050,0.005,79662.0,79661.0,0.125531]
[1731255309266,0.005,79678.0,79661.0,0.125531]
[1731255309267,0.005,79670.0,79669.0,0.125519]
[1731255309626,0.01082265,79670.0,79669.0,0.125519]
[1731255309826,0.005,79676.0,79669.0,0.38197721]
[1731255310124,0.005,79676.0,79675.0,0.125509]
[1731255310328,0.18833456,79683.0,79675.0,0.125509]
[1731255310329,0.18833456,79683.0,79675.0,0.12832889]
[1731255310533,0.001678,79686.0,79685.0,0.125494]
[1731255310854,0.006678,79686.0,79685.0,0.25143621]
[1731255313150,0.006678,79686.0,79668.0,0.005]
[1731255313389,0.005,79676.0,79671.0,0.31427677]
[1731255313582,0.12551,79675.0,79671.0,0.12594221]
[1731255313767,0.12551,79675.0,79671.0,0.12587121]
[1731255314199,0.005,79676.0,79671.0,0.12587121]
[1731255314423,0.005,79676.0,79675.0,0.125509]
[1731255314737,0.005,79678.0,79677.0,0.125506]
[1731255314868,0.005,79678.0,79677.0,0.25144821]
[1731255315284,0.005,79678.0,79677.0,0.12594221]
[1731255315483,0.01087496,79678.0,79677.0,0.12594221]
[1731255315682,0.005,79678.0,79677.0,0.25144821]
[1731255317666,0.001678,79686.0,79677.0,0.20254221]
[1731255317667,0.005,79679.0,79677.0,0.20254221]
[1731255317884,0.005,79679.0,79678.0,0.25144721]
[1731255319474,0.005,79680.0,79679.0,0.125503]
[1731255319668,0.005,79685.0,79682.0,0.250994]
[1731255319874,0.005,79685.0,79684.0,0.125495]
[1731255321398,0.001678,79686.0,79685.0,0.125494]
[1731255321626,0.001678,79686.0,79685.0,0.25143621]
[1731255321778,0.006678,79686.0,79685.0,0.12594221]
[1731255322387,0.01260611,79686.0,79685.0,0.12594221]
[1731255322768,0.006678,79686.0,79685.0,0.25143621]
[1731255322940,0.006678,79686.0,79685.0,0.12594221]
[1731255323150,0.006678,79686.0,79685.0,0.25143621]
[1731255326904,0.001678,79686.0,79685.0,0.25143621]
[1731255327107,0.001678,79686.0,79685.0,0.43917976]
[1731255327755,0.001678,79686.0,79685.0,0.33743621]
[1731255329157,0.001678,79686.0,79685.0,0.33729194]
[1731255330090,0.005,79692.0,79691.0,0.381451]
[1731255330229,0.005,79692.0,79691.0,0.50739321]
[1731255330432,0.010968,79692.0,79691.0,0.50739321]
[1731255330630,0.005,79692.0,79691.0,0.50739321]
[1731255330840,0.005,79693.0,79692.0,0.125483]
[1731255331040,0.005,79693.0,79692.0,0.25142521]
[1731255331241,0.13645653,79693.0,79684.0,0.250988]
[1731255331443,0.005,79687.0,79686.0,0.125492]
[1731255331683,0.005,79687.0,79686.0,0.25143421]
[1731255331882,0.01093531,79687.0,79686.0,0.25143421]
[1731255332225,0.00945148,79687.0,79686.0,0.25143421]
[1731255332599,0.005,79687.0,79686.0,0.25143421]
[1731255334005,0.005,79687.0,79686.0,0.12594221]
[1731255334217,0.005,79687.0,79686.0,0.25143421]
[1731255334629,0.005,79687.0,79686.0,0.12594221]
[1731255334809,0.001678,79692.0,79674.0,0.251022]
[1731255334810,0.005,79685.0,79675.0,0.005]
[1731255335043,0.10174355,79699.0,79675.0,0.005]
[1731255335044,0.1,79705.0,79702.0,0.69216651]
[1731255335242,0.2529,79713.0,79702.0,0.69216651]
[1731255335243,0.37350855,79703.0,79702.0,0.69216651]
[1731255335551,0.250981,79687.0,79681.0,0.005]
[1731255335744,0.70706022,79688.0,79676.0,0.12594221]
[1731255335745,0.125504,79679.0,79676.0,0.12594221]
[1731255335941,0.125499,79682.0,79678.0,0.005]
[1731255336391,0.125494,79685.0,79678.0,0.005]
[1731255336515,0.70706022,79688.0,79678.0,0.005]
[1731255336516,0.250985,79686.0,79678.0,0.005]
[1731255336729,0.250988,79685.0,79678.0,0.005]
[1731255336921,0.125498,79683.0,79678.0,0.005]
[1731255337143,0.125493,79686.0,79678.0,0.005]
[1731255337300,0.250981,79687.0,79678.0,0.005]
[1731255337505,0.125498,79683.0,79678.0,0.005]
[1731255337711,0.73958265,79688.0,79678.0,0.005]
[1731255337976,0.125503,79679.0,79676.0,0.12594221]
[1731255338125,0.73958265,79688.0,79676.0,0.12594221]
[1731255338466,0.125505,79678.0,79677.0,0.005]
[1731255338625,0.125505,79678.0,79677.0,0.13094221]
[1731255338966,0.250988,79685.0,79677.0,0.12594221]
[1731255339182,0.1255,79682.0,79677.0,0.13094221]
[1731255339418,0.250988,79685.0,79677.0,0.13094221]
[1731255339624,0.125505,79678.0,79677.0,0.13094221]
[1731255339827,0.125502,79680.0,79677.0,0.13094221]
[1731255340074,0.250998,79682.0,79677.0,0.13094221]
[1731255340311,0.73958265,79688.0,79677.0,0.13094221]
[1731255340312,0.125502,79680.0,79677.0,0.13094221]
[1731255340529,0.125505,79678.0,79677.0,0.13094221]
[1731255340953,0.125505,79678.0,79677.0,0.005]
[1731255343227,0.250997,79682.0,79677.0,0.005]
[1731255343414,0.125505,79678.0,79677.0,0.005]
[1731255343611,0.28488395,79682.0,79671.0,0.000839]
[1731255343612,0.251019,79675.0,79671.0,0.000839]
[1731255343811,0.125514,79672.0,79671.0,0.000839]
[1731255344064,0.225514,79672.0,79671.0,0.000839]
[1731255346542,0.25951981,79672.0,79671.0,0.000839]
[1731255349049,0.25951981,79672.0,79650.0,0.18833456]
[1731255349050,0.125538,79657.0,79650.0,0.18833456]
[1731255349277,0.54052376,79657.0,79650.0,0.18833456]
[1731255349453,0.59462376,79657.0,79640.0,0.18833456]
[1731255350216,0.59662376,79657.0,79640.0,0.18833456]
[1731255350746,0.62726873,79657.0,79640.0,0.18833456]
[1731255351590,0.62926873,79657.0,79640.0,0.18833456]
[1731255351793,0.62726873,79657.0,79640.0,0.18833456]
[1731255353007,0.52552518,79657.0,79640.0,0.18833456]
[1731255355201,0.62726873,79657.0,79640.0,0.18833456]
[1731255355327,0.62926873,79657.0,79640.0,0.18833456]
[1731255355739,0.62726873,79657.0,79640.0,0.18833456]
[1731255357964,0.62726873,79657.0,79631.0,0.31723856]
[1731255357965,0.01,79645.0,79631.0,0.31723856]
[1731255358136,0.22731955,79633.0,79632.0,0.18833456]
[1731255358362,0.22731955,79633.0,79631.0,0.31723856]
[1731255358363,0.207877,79632.0,79631.0,0.31723856]
[1731255358653,0.207877,79632.0,79631.0,0.30105033]
[1731255358654,0.366977,79632.0,79631.0,0.30105033]
[1731255358834,0.368977,79632.0,79631.0,0.30105033]
[1731255359031,0.366977,79632.0,79631.0,0.30105033]
[1731255361165,0.40040137,79632.0,79631.0,0.30105033]
[1731255362033,0.40040137,79632.0,79631.0,0.30188933]
[1731255362235,0.40228586,79632.0,79631.0,0.30188933]
[1731255362650,0.40428586,79632.0,79631.0,0.30188933]
[1731255362860,0.50602941,79632.0,79631.0,0.29747924]
[1731255363069,0.53022807,79632.0,79631.0,0.29747924]
[1731255364825,0.55322807,79632.0,79631.0,0.29747924]
[1731255365035,0.55322807,79632.0,79631.0,0.29740924]
[1731255365494,0.65497162,79632.0,79631.0,0.29740924]
[1731255365720,0.55322807,79632.0,79631.0,0.29740924]
[1731255366001,0.65497162,79632.0,79631.0,0.29740924]
[1731255366215,0.71759896,79632.0,79631.0,0.09531435]
[1731255366464,0.71759896,79632.0,79620.0,0.84918398]
[1731255366465,0.277495,79621.0,79620.0,0.84918398]
[1731255366676,2.18568076,79621.0,79620.0,0.81868584]
[1731255367133,2.18568076,79621.0,79620.0,0.80989135]
[1731255367134,2.08193721,79621.0,79620.0,0.80989135]
[1731255367362,2.18568076,79621.0,79620.0,0.80989135]
[1731255367576,2.26678076,79621.0,79620.0,0.80989135]
[1731255368041,2.26678076,79621.0,79620.0,0.80389135]
[1731255369842,2.26678076,79621.0,79620.0,0.76389135]
[1731255370517,2.36852431,79621.0,79620.0,0.15293084]
[1731255370967,2.26678076,79621.0,79620.0,0.15293084]
[1731255371633,2.26478076,79621.0,79620.0,0.15293084]
[1731255371868,2.18568076,79621.0,79620.0,0.15293084]
[1731255372120,2.31162297,79621.0,79620.0,0.15293084]
[1731255373235,2.31162297,79621.0,79620.0,0.12781184]
[1731255373477,2.31162297,79621.0,79620.0,0.02733484]
[1731255373736,2.81162297,79621.0,79620.0,0.01623006]
[1731255373976,0.260612,79610.0,79609.0,0.00142]
[1731255374194,0.48829776,79610.0,79609.0,0.00142]
[1731255375091,0.48829776,79610.0,79608.0,0.999859]
[1731255375092,0.258613,79609.0,79608.0,0.999859]
[1731255375298,0.38455521,79609.0,79608.0,0.999859]
[1731255375750,0.38655521,79609.0,79608.0,0.999859]
[1731255375992,0.38455521,79609.0,79608.0,0.999859]
[1731255376613,0.38655521,79609.0,79608.0,0.999859]
[1731255376845,0.38455521,79609.0,79608.0,0.999859]
[1731255377271,0.38655521,79609.0,79608.0,0.999859]
[1731255377494,0.38455521,79609.0,79608.0,0.999859]
[1731255377906,0.38655521,79609.0,79608.0,0.999859]
[1731255378133,0.38455521,79609.0,79608.0,0.999859]
[1731255379092,0.38655521,79609.0,79608.0,0.999859]
[1731255379302,0.38455521,79609.0,79608.0,0.999859]
[1731255380184,0.36155521,79609.0,79608.0,0.999859]
[1731255381046,0.36355521,79609.0,79608.0,0.999859]
[1731255381490,0.36155521,79609.0,79608.0,0.999859]
[1731255382980,0.36155521,79609.0,79608.0,0.000839]
[1731255383608,0.40046704,79609.0,79608.0,0.000839]
[1731255386050,0.40214704,79609.0,79608.0,0.000839]
[1731255386467,0.40414704,79609.0,79608.0,0.000839]
[1731255386883,0.40214704,79609.0,79608.0,0.000839]
[1731255389079,0.43046114,79609.0,79608.0,0.000839]
[1731255389527,0.40414704,79609.0,79608.0,0.000839]
[1731255390406,0.40214704,79609.0,79608.0,0.000839]
[1731255395227,0.40214704,79609.0,79608.0,0.00077]
[1731255396870,0.40414704,79609.0,79608.0,0.00077]
[1731255398173,0.40214704,79609.0,79608.0,0.00077]
[1731255398624,0.40414704,79609.0,79608.0,0.00077]
[1731255399159,0.40214704,79609.0,79608.0,0.00077]
[1731255401570,0.40214704,79609.0,79608.0,0.07807]
[1731255401571,0.26620483,79609.0,79608.0,0.07807]
[1731255402875,0.36794838,79609.0,79608.0,0.07807]
[1731255404417,0.26620483,79609.0,79608.0,0.07807]
[1731255409045,0.74179368,79609.0,79608.0,0.00077]
[1731255409271,0.67761377,79609.0,79608.0,0.00077]
[1731255409506,0.77875274,79609.0,79608.0,0.00077]
[1731255409711,0.64005013,79609.0,79608.0,0.00077]
[1731255410355,0.85558547,79609.0,79608.0,0.00077]
[1731255410867,0.85358547,79609.0,79608.0,0.00077]
[1731255411101,0.51170177,79609.0,79608.0,0.00077]
[1731255411328,0.26620483,79609.0,79608.0,0.00077]
[1731255411763,0.30382212,79609.0,79608.0,0.00077]
[1731255411971,0.26620483,79609.0,79608.0,0.00077]
[1731255412207,0.42437398,79609.0,79608.0,0.00077]
[1731255413079,0.63782453,79609.0,79608.0,0.00077]
[1731255413279,0.64282453,79609.0,79608.0,0.00077]
[1731255413732,0.71805866,79609.0,79608.0,0.00077]
[1731255414169,0.64282453,79609.0,79608.0,0.00077]
[1731255414427,0.7368672,79609.0,79608.0,0.00077]
[1731255414660,0.64282453,79609.0,79608.0,0.00077]
[1731255414903,0.73830916,79609.0,79608.0,0.00077]
[1731255415104,0.64282453,79609.0,79608.0,0.00077]
[1731255415308,0.73692155,79609.0,79608.0,0.00077]
[1731255415707,0.64282453,79609.0,79608.0,0.00077]
[1731255416150,0.73692125,79609.0,79608.0,0.00077]
[1731255416520,0.66782453,79609.0,79608.0,0.00077]
[1731255417170,0.79376674,79609.0,79608.0,0.00077]
[1731255417519,0.66582453,79609.0,79608.0,0.00077]
[1731255417918,0.75992033,79609.0,79608.0,0.00077]
[1731255418147,0.52689059,79609.0,79608.0,0.00077]
[1731255419158,0.6658234,79609.0,79608.0,0.00077]
[1731255419536,0.75991546,79609.0,79608.0,0.00077]
[1731255420138,0.73691546,79609.0,79608.0,0.00077]
[1731255420774,0.73692784,79609.0,79608.0,0.00077]
[1731255420959,0.64283078,79609.0,79608.0,0.00077]
[1731255424284,0.73692784,79609.0,79608.0,0.00077]
[1731255424688,0.89347627,79609.0,79608.0,0.00077]
[1731255424894,0.76957627,79609.0,79608.0,0.00077]
[1731255425210,0.66783272,79609.0,79608.0,0.00077]
[1731255425899,0.66583272,79609.0,79608.0,0.00077]
[1731255427290,0.75992963,79609.0,79608.0,0.00077]
[1731255427437,0.64830133,79609.0,79608.0,0.00077]
[1731255427829,0.55420317,79609.0,79608.0,0.00077]
[1731255429058,0.62947861,79609.0,79608.0,0.00077]
[1731255429265,0.55420317,79609.0,79608.0,0.00077]
[1731255429462,0.67191869,79609.0,79608.0,0.00077]
[1731255429718,0.55419713,79609.0,79608.0,0.00077]
[1731255430688,0.55619713,79609.0,79608.0,0.00077]
[1731255430958,0.63147172,79609.0,79608.0,0.00077]
[1731255431175,0.62947172,79609.0,79608.0,0.00077]
[1731255431382,0.62947297,79609.0,79608.0,0.00077]
[1731255431515,0.55419713,79609.0,79608.0,0.00077]
[1731255433635,0.68013934,79609.0,79608.0,0.00077]
[1731255435459,0.55419713,79609.0,79608.0,0.00077]
[1731255440148,0.55419713,79609.0,79598.0,0.0815]
[1731255440149,0.1,79599.0,79598.0,0.0815]
[1731255440347,0.32737255,79599.0,79598.0,0.0815]
[1731255445115,0.36501191,79599.0,79598.0,0.0815]
[1731255445800,0.32737255,79599.0,79598.0,0.0815]
[1731255446010,0.36501191,79599.0,79598.0,0.0815]
[1731255446233,0.32737255,79599.0,79598.0,0.0815]
[1731255448290,0.36501191,79599.0,79598.0,0.0815]
[1731255448749,0.32737255,79599.0,79598.0,0.08234]
[1731255450341,0.36658909,79599.0,79598.0,0.08234]
[1731255452931,0.33164301,79599.0,79598.0,0.08234]
[1731255454158,0.38810586,79599.0,79598.0,0.08234]
[1731255454502,0.33164301,79599.0,79598.0,0.08234]
[1731255455766,0.36928674,79599.0,79598.0,0.08234]
[1731255459021,0.33164301,79599.0,79598.0,0.08234]
[1731255459250,0.38810586,79599.0,79598.0,0.08234]
[1731255459455,0.36929045,79599.0,79598.0,0.08234]
[1731255459610,0.38810586,79599.0,79598.0,0.08234]
[1731255459832,0.33164301,79599.0,79598.0,0.08234]
[1731255460237,0.38810586,79599.0,79598.0,0.08234]
[1731255460434,0.33164301,79599.0,79598.0,0.08234]
[1731255461077,0.36928947,79599.0,79598.0,0.08234]
[1731255462448,0.38810586,79599.0,79598.0,0.08234]
[1731255462869,0.33164301,79599.0,79598.0,0.08234]
[1731255463320,0.33164301,79599.0,79598.0,0.00124]
[1731255463954,0.36929065,79599.0,79598.0,0.00124]
[1731255466765,0.36928986,79599.0,79598.0,0.00124]
[1731255467513,0.36608986,79599.0,79598.0,0.00124]
[1731255467714,0.32844301,79599.0,79598.0,0.00124]
[1731255470710,0.26164554,79599.0,79598.0,0.00124]
[1731255474400,0.26164554,79599.0,79598.0,0.00164]
[1731255474809,0.222429,79599.0,79598.0,0.07954]
[1731255476145,0.0968,79599.0,79598.0,0.07954]
[1731255476553,0.67715445,79600.0,79598.0,0.07954]
[1731255476725,0.67715445,79600.0,79599.0,0.203529]
[1731255477130,0.67715445,79600.0,79599.0,0.0779]
[1731255477338,0.67715445,79600.0,79599.0,0.203529]
[1731255477780,0.67715445,79600.0,79599.0,0.258329]
[1731255477981,0.67715445,79600.0,79599.0,0.45106868]
[1731255478168,0.59905445,79600.0,79599.0,0.45106868]
[1731255480684,0.59905445,79600.0,79599.0,0.38427121]
[1731255481121,0.59905445,79600.0,79599.0,0.1327]
[1731255481300,0.72468245,79600.0,79599.0,0.1277]
[1731255481510,0.72468245,79600.0,79599.0,0.1327]
[1731255482033,0.72468245,79600.0,79599.0,0.0779]
[1731255482246,0.59905445,79600.0,79599.0,0.0829]
[1731255485032,0.72468245,79600.0,79599.0,0.0829]
[1731255485433,0.59905445,79600.0,79599.0,0.0829]
[1731255486210,0.72468245,79600.0,79599.0,0.0829]
[1731255495613,0.72468245,79600.0,79599.0,0.08374]
[1731255495912,0.75835994,79600.0,79599.0,0.08374]
[1731255496571,0.75835994,79600.0,79599.0,0.00084]
[1731255497424,0.96011688,79600.0,79599.0,0.00084]
[1731255498565,0.85835994,79600.0,79599.0,0.00084]
[1731255499236,0.96011688,79600.0,79599.0,0.00084]
[1731255499813,0.85835994,79600.0,79599.0,0.00084]
[1731255500427,0.75835994,79600.0,79599.0,0.00084]
[1731255500625,0.75835994,79600.0,79599.0,0.00584]
[1731255513164,0.86011688,79600.0,79599.0,0.00084]
[1731255513393,0.96011688,79600.0,79599.0,0.00084]
[1731255517438,0.99927648,79600.0,79599.0,0.00084]
[1731255518286,0.96011688,79600.0,79599.0,0.00084]
[1731255522332,0.96002688,79600.0,79599.0,0.00084]
[1731255522893,0.99187242,79600.0,79599.0,0.00084]
[1731255523631,0.85826994,79600.0,79599.0,0.00084]
[1731255524165,0.87138468,79600.0,79599.0,0.00084]
[1731255525161,0.85826994,79600.0,79599.0,0.00084]
[1731255525368,0.98421215,79600.0,79599.0,0.00084]
[1731255525562,0.99187242,79600.0,79599.0,0.00084]
[1731255525772,1.03697242,79600.0,79599.0,0.00084]
[1731255525946,0.97017118,79600.0,79599.0,0.00084]
[1731255526689,1.03697242,79600.0,79599.0,0.00084]
[1731255526897,1.00516181,79600.0,79599.0,0.00084]
[1731255532235,1.04430848,79600.0,79599.0,0.00084]
[1731255532833,1.00516181,79600.0,79599.0,0.00084]
[1731255533613,1.13610402,79600.0,79599.0,0.00084]
[1731255533965,1.2358221,79600.0,79599.0,0.00084]
[1731255534162,1.19824924,79600.0,79599.0,0.00084]
[1731255534390,1.28885468,79600.0,79599.0,0.00084]
[1731255534545,1.19824924,79600.0,79599.0,0.00084]
[1731255534926,1.2546102,79600.0,79599.0,0.00084]
[1731255538662,1.2566102,79600.0,79599.0,0.00084]
[1731255538871,1.2546102,79600.0,79599.0,0.00084]
[1731255539076,1.2596102,79600.0,79599.0,0.00084]
[1731255540550,1.2546102,79600.0,79599.0,0.00084]
[1731255541433,1.35205891,79600.0,79599.0,0.00084]
[1731255541873,1.35005891,79600.0,79599.0,0.00084]
[1731255542055,1.26772056,79600.0,79599.0,0.00084]
[1731255543004,1.26772175,79600.0,79599.0,0.00084]
[1731255544384,1.21136498,79600.0,79599.0,0.00084]
[1731255545926,1.24893107,79600.0,79599.0,0.00084]
[1731255546141,1.21136498,79600.0,79599.0,0.00084]
[1731255547438,1.26771412,79600.0,79599.0,0.00084]
[1731255548721,1.26971412,79600.0,79599.0,0.00084]
[1731255548926,1.29954563,79600.0,79599.0,0.00084]
[1731255549148,1.38188567,79600.0,79599.0,0.00084]
[1731255549385,1.38189623,79600.0,79599.0,0.00084]
[1731255549599,1.29955634,79600.0,79599.0,0.00084]
[1731255550267,1.24319649,79600.0,79599.0,0.00084]
[1731255551416,1.38191811,79600.0,79599.0,0.00084]
[1731255552063,1.39025082,79600.0,79599.0,0.00084]
[1731255552481,1.27000642,79600.0,79599.0,0.00084]
[1731255552621,1.1312848,79600.0,79599.0,0.00084]
[1731255552830,1.19809649,79600.0,79599.0,0.00084]
[1731255554105,1.25447427,79600.0,79599.0,0.00084]
[1731255554395,1.19809649,79600.0,79599.0,0.00084]
[1731255554577,1.18766258,79600.0,79599.0,0.00084]
[1731255554763,1.25447427,79600.0,79599.0,0.00084]
[1731255555359,1.41202487,79600.0,79599.0,0.00084]
[1731255555557,1.41202438,79600.0,79599.0,0.00084]
[1731255555749,1.33687998,79600.0,79599.0,0.00084]
[1731255556494,1.43079522,79600.0,79599.0,0.00084]
[1731255557313,1.33687998,79600.0,79599.0,0.00084]
[1731255557521,1.43090587,79600.0,79599.0,0.00084]
[1731255557723,1.33687998,79600.0,79599.0,0.00084]
[1731255558084,1.43090619,79600.0,79599.0,0.00084]
[1731255558315,0.028,79597.0,79596.0,0.99792795]
[1731255558539,0.41871943,79597.0,79596.0,0.99792795]
[1731255558850,0.47514452,79597.0,79596.0,0.99792795]
[1731255559208,0.55761024,79597.0,79596.0,0.99792795]
[1731255560173,0.63286137,79597.0,79596.0,0.99792795]
[1731255562139,0.55761024,79597.0,79596.0,0.99792795]
[1731255562343,0.68355253,79597.0,79596.0,0.99792795]
[1731255562760,0.55761032,79597.0,79596.0,0.99792795]
[1731255563162,0.55761032,79597.0,79596.0,0.99876795]
[1731255563163,0.63286125,79597.0,79596.0,0.99876795]
[1731255563543,0.55761032,79597.0,79596.0,0.99876795]
[1731255563787,0.55761097,79597.0,79596.0,0.99876795]
[1731255564346,0.55949611,79597.0,79596.0,0.99876795]
[1731255564998,0.63343223,79597.0,79596.0,0.99876795]
[1731255565377,0.60919611,79597.0,79596.0,0.99876795]
[1731255565587,0.61119611,79597.0,79596.0,0.99876795]
[1731255566028,0.60919611,79597.0,79596.0,0.99876795]
[1731255567505,0.70322973,79597.0,79596.0,0.99876795]
[1731255567895,0.60731097,79597.0,79596.0,0.99876795]
[1731255568097,0.6091961,79597.0,79596.0,0.99876795]
[1731255568875,0.6091961,79597.0,79596.0,0.00084]
[1731255570443,0.73513831,79597.0,79596.0,0.00084]
[1731255571267,0.6091961,79597.0,79596.0,0.00084]
[1731255571635,0.61136285,79597.0,79596.0,0.00084]
[1731255571843,0.005,79592.0,79591.0,0.001422]
[1731255572038,0.45935107,79592.0,79591.0,0.001422]
[1731255572300,0.50066304,79592.0,79591.0,0.001422]
[1731255572514,0.51377951,79592.0,79591.0,0.001422]
[1731255573578,0.51161276,79592.0,79591.0,0.001422]
[1731255574199,0.60569055,79592.0,79591.0,0.001422]
[1731255574626,0.53887886,79592.0,79591.0,0.001422]
[1731255574877,0.58687343,79592.0,79591.0,0.001422]
[1731255575094,0.51161276,79592.0,79591.0,0.001422]
[1731255575317,0.60569103,79592.0,79591.0,0.001422]
[1731255575703,0.51161276,79592.0,79591.0,0.001422]
[1731255576147,0.5868736,79592.0,79591.0,0.001422]
[1731255576408,0.51161276,79592.0,79591.0,0.001422]
[1731255576823,0.60569103,79592.0,79591.0,0.001422]
[1731255577042,0.54464183,79592.0,79591.0,0.001422]
[1731255578342,0.63872837,79592.0,79591.0,0.001422]
[1731255579374,0.6387296,79592.0,79591.0,0.001422]
[1731255579801,0.70554129,79592.0,79591.0,0.001422]
[1731255579938,0.6387296,79592.0,79591.0,0.001422]
[1731255581202,0.70554129,79592.0,79591.0,0.001422]
[1731255581535,0.8314835,79592.0,79591.0,0.001422]
[1731255581741,0.73741814,79592.0,79591.0,0.001422]
[1731255582118,0.61347593,79592.0,79591.0,0.001422]
[1731255582492,0.61147593,79592.0,79591.0,0.001422]
[1731255583884,0.73941814,79592.0,79591.0,0.001422]
[1731255584084,0.73941814,79592.0,79584.0,0.998979]
[1731255584085,0.125651,79585.0,79584.0,0.998979]
[1731255584434,0.6932836,79585.0,79584.0,0.998979]
[1731255584635,0.78532721,79585.0,79584.0,0.998979]
[1731255585065,0.6912836,79585.0,79584.0,0.998979]
[1731255585898,0.78532721,79585.0,79584.0,0.998979]
[1731255587131,0.6912836,79585.0,79584.0,0.998979]
[1731255588330,0.78532721,79585.0,79584.0,0.998979]
[1731255588873,0.6912836,79585.0,79584.0,0.998979]
[1731255589193,0.7371836,79585.0,79584.0,0.998979]
[1731255589687,0.83320156,79585.0,79584.0,0.998979]
[1731255591435,0.8330334,79585.0,79584.0,0.998979]
[1731255591657,0.73904361,79585.0,79584.0,0.998979]
[1731255592021,0.73904073,79585.0,79584.0,0.998979]
[1731255593180,0.73704073,79585.0,79584.0,0.998979]
[1731255593384,0.59826181,79585.0,79584.0,0.90872987]
[1731255593559,0.59826181,79585.0,79584.0,0.86460464]
[1731255593860,0.60042437,79585.0,79584.0,0.86460464]
[1731255594282,0.66723606,79585.0,79584.0,0.82760464]
[1731255594481,0.60042437,79585.0,79584.0,0.78860464]
[1731255594711,0.60242437,79585.0,79584.0,0.78860464]
[1731255594918,0.56127915,79585.0,79584.0,0.78860464]
[1731255595335,0.56327915,79585.0,79584.0,0.78860464]
[1731255595533,0.56127915,79585.0,79584.0,0.78860464]
[1731255595680,0.56327915,79585.0,79584.0,0.78860464]
[1731255595893,0.56127915,79585.0,79584.0,0.78860464]
[1731255596138,0.73919557,79585.0,79584.0,0.78860464]
[1731255596659,0.73919557,79585.0,79584.0,0.78260464]
[1731255597060,0.41875515,79585.0,79584.0,0.78260464]
[1731255597380,0.4464049,79585.0,79584.0,0.78260464]
[1731255597579,0.41717691,79585.0,79584.0,0.78260464]
[1731255597785,0.41717691,79585.0,79584.0,0.78344464]
[1731255597786,0.4464049,79585.0,79584.0,0.78344464]
[1731255598231,0.51321659,79585.0,79584.0,0.78344464]
[1731255598823,0.51489659,79585.0,79584.0,0.78344464]
[1731255599326,0.55248079,79585.0,79584.0,0.78344464]
[1731255599480,0.41885762,79585.0,79584.0,0.78344464]
[1731255599686,0.552481,79585.0,79584.0,0.78344464]
[1731255600111,0.55436645,79585.0,79584.0,0.78344464]
[1731255602280,0.48755476,79585.0,79584.0,0.78344464]
[1731255602452,0.45497035,79585.0,79584.0,0.78344464]
[1731255602851,0.44997035,79585.0,79584.0,0.78344464]
[1731255603301,0.4480849,79585.0,79584.0,0.78344464]
[1731255603438,0.44997035,79585.0,79584.0,0.78344464]
[1731255603665,0.45497035,79585.0,79584.0,0.78344464]
[1731255604240,0.44997035,79585.0,79584.0,0.78344464]
[1731255605058,0.51678204,79585.0,79584.0,0.78344464]
[1731255605253,0.55595569,79585.0,79584.0,0.78344464]
[1731255605677,0.51678204,79585.0,79584.0,0.78344464]
[1731255606284,0.44997035,79585.0,79584.0,0.78344464]
[1731255606694,0.5267308,79585.0,79584.0,0.78344464]
[1731255607099,0.59354249,79585.0,79584.0,0.78344464]
[1731255607501,0.55595808,79585.0,79584.0,0.78344464]
[1731255607942,0.59355621,79585.0,79584.0,0.78344464]
[1731255608334,0.59355621,79585.0,79584.0,0.21458291]
[1731255608335,0.78631011,79585.0,79584.0,0.21458291]
[1731255608515,0.78631011,79585.0,79576.0,0.30641999]
[1731255608516,0.230664,79577.0,79576.0,0.15605014]
[1731255608733,0.230664,79577.0,79560.0,0.18833456]
[1731255608735,0.22568,79567.0,79560.0,0.18833456]
[1731255608942,0.29249169,79567.0,79564.0,0.005]
[1731255610901,0.32758098,79567.0,79562.0,0.005]
[1731255611203,0.32758098,79567.0,79564.0,0.005]
[1731255611204,0.35058098,79567.0,79564.0,0.005]
[1731255611737,0.48152319,79567.0,79564.0,0.005]
[1731255613027,0.51527817,79567.0,79564.0,0.005]
[1731255620621,0.63131048,79567.0,79564.0,0.005]
[1731255620800,0.63131048,79567.0,79566.0,0.15091153]
[1731255620801,0.51527817,79567.0,79566.0,0.15091153]
[1731255621713,0.32759198,79560.0,79559.0,0.3522186]
[1731255622411,0.35059198,79560.0,79559.0,0.3522186]
[1731255622861,0.35059198,79560.0,79559.0,0.2744186]
[1731255625649,0.35059198,79560.0,79559.0,0.2731586]
[1731255629121,0.248691,79560.0,79559.0,0.2731586]
[1731255631200,0.35059198,79560.0,79559.0,0.27189741]
[1731255632858,0.31555708,79560.0,79559.0,0.27189741]
[1731255635142,0.31555708,79560.0,79559.0,0.26600685]
[1731255635747,0.248696,79557.0,79556.0,0.26600684]
[1731255639631,0.28182602,79557.0,79556.0,0.26600684]
[1731255647440,0.28182602,79557.0,79556.0,0.26684684]
[1731255649324,0.28182602,79557.0,79556.0,0.00084]
[1731255655652,0.3486921,79557.0,79556.0,0.00084]
[1731255655851,0.52653431,79557.0,79556.0,0.00084]
[1731255656310,0.55523444,79557.0,79556.0,0.00084]
[1731255656511,0.45966823,79557.0,79556.0,0.00084]
[1731255657064,0.52653431,79557.0,79556.0,0.00084]
[1731255658258,0.128,79556.0,79552.0,1.46e-05]
[1731255658465,0.38243416,79553.0,79552.0,1.46e-05]
[1731255658867,0.225702,79553.0,79552.0,1.46e-05]
[1731255659454,0.2313294,79553.0,79552.0,0.0759146]
[1731255660543,0.23413649,79553.0,79552.0,0.0759146]
[1731255660688,0.23132512,79553.0,79552.0,0.0759146]
[1731255661777,0.23132512,79553.0,79552.0,0.07565671]
[1731255662326,0.23413667,79553.0,79552.0,0.07565671]
[1731255663280,0.32400275,79553.0,79552.0,0.07565671]
[1731255663486,0.32400275,79553.0,79551.0,0.001422]